[Event "*** Titled Tuesday Blitz"]
[Site "Chess.com"]
[Date "2020.12.29"]
[Round "5"]
[White "tjychess"]
[Black "juancruzarias"]
[Result "1/2-1/2"]
[WhiteElo "2725"]
[BlackElo "2539"]
[TimeControl "180+1"]
[EndTime "10:54:06 PST"]
[Termination "Game drawn by repetition"]

1. d4 {[%clk 0:02:45.6]} 1... Nf6 {[%clk 0:03:00]} 2. c4 {[%clk 0:02:45.4]} 2...
c5 {[%clk 0:03:00.3]} 3. d5 {[%clk 0:02:45.5]} 3... e5 {[%clk 0:03:00.7]} 4. Nc3
{[%clk 0:02:45.2]} 4... d6 {[%clk 0:03:01.2]} 5. e4 {[%clk 0:02:45.1]} 5... Nbd7
{[%clk 0:03:01.6]} 6. Nf3 {[%clk 0:02:43.8]} 6... Be7 {[%clk 0:03:02.1]} 7. Be2
{[%clk 0:02:42.8]} 7... Nf8 {[%clk 0:03:00.9]} 8. h3 {[%clk 0:02:40.3]} 8... Ng6
{[%clk 0:03:01.2]} 9. g3 {[%clk 0:02:40.7]} 9... h5 {[%clk 0:02:53.1]} 10. h4
{[%clk 0:02:34.4]} 10... Bg4 {[%clk 0:02:53.1]} 11. Be3 {[%clk 0:02:30]} 11...
Bf8 {[%clk 0:02:50.7]} 12. Qc2 {[%clk 0:02:22.8]} 12... Ne7 {[%clk 0:02:50.8]}
13. O-O-O {[%clk 0:02:17]} 13... g6 {[%clk 0:02:50.8]} 14. Ng5 {[%clk
0:02:17.3]} 14... Bxe2 {[%clk 0:02:46.4]} 15. Qxe2 {[%clk 0:02:18.2]} 15... Bg7
{[%clk 0:02:46.7]} 16. f3 {[%clk 0:02:15.4]} 16... a6 {[%clk 0:02:40]} 17. Kb1
{[%clk 0:02:14.9]} 17... Qd7 {[%clk 0:02:36.4]} 18. a4 {[%clk 0:01:49.2]} 18...
Nh7 {[%clk 0:01:47.4]} 19. Nxh7 {[%clk 0:01:30.3]} 19... Rxh7 {[%clk 0:01:48.3]}
20. g4 {[%clk 0:01:30.2]} 20... O-O-O {[%clk 0:01:41]} 21. g5 {[%clk 0:01:26]}
21... Kb8 {[%clk 0:01:33.2]} 22. Qc2 {[%clk 0:01:12.6]} 22... f6 {[%clk
0:01:30.7]} 23. gxf6 {[%clk 0:01:11.2]} 23... Bxf6 {[%clk 0:01:30.7]} 24. Rdg1
{[%clk 0:01:12.1]} 24... Rf7 {[%clk 0:01:30.6]} 25. Qg2 {[%clk 0:01:07.2]} 25...
Rdf8 {[%clk 0:01:30.5]} 26. b3 {[%clk 0:01:01.3]} 26... Qc7 {[%clk 0:01:30.7]}
27. Kc2 {[%clk 0:00:59.1]} 27... Qa5 {[%clk 0:01:27.4]} 28. Bd2 {[%clk
0:00:59.1]} 28... Qc7 {[%clk 0:01:26.5]} 29. Qh3 {[%clk 0:00:58.2]} 29... Qc8
{[%clk 0:01:22]} 30. Qxc8+ {[%clk 0:00:57]} 30... Kxc8 {[%clk 0:01:22.9]} 31.
Rh3 {[%clk 0:00:55.3]} 31... Bg7 {[%clk 0:01:22.6]} 32. Rgg3 {[%clk 0:00:55.2]}
32... Bf6 {[%clk 0:01:22.5]} 33. Kd3 {[%clk 0:00:55.2]} 33... Kd7 {[%clk
0:01:22.9]} 34. Ke2 {[%clk 0:00:55.3]} 34... Rb8 {[%clk 0:01:17.9]} 35. Rg2
{[%clk 0:00:54]} 35... b6 {[%clk 0:01:18.3]} 36. Be1 {[%clk 0:00:50.4]} 36...
Ke8 {[%clk 0:01:11.5]} 37. Bd2 {[%clk 0:00:50]} 37... Kf8 {[%clk 0:01:11.2]} 38.
Rh1 {[%clk 0:00:40.8]} 38... Kg7 {[%clk 0:01:10.7]} 39. Rgh2 {[%clk 0:00:35]}
39... Kh7 {[%clk 0:01:10.4]} 40. Rg2 {[%clk 0:00:35.2]} 40... Rbf8 {[%clk
0:01:10.3]} 41. Nd1 {[%clk 0:00:33.4]} 41... Bg7 {[%clk 0:01:08.7]} 42. Rh3
{[%clk 0:00:33]} 42... Bf6 {[%clk 0:01:09.2]} 43. Nc3 {[%clk 0:00:22.3]} 43...
Rb8 {[%clk 0:01:09.5]} 44. Rh1 {[%clk 0:00:22]} 44... Ng8 {[%clk 0:01:08.8]} 45.
Rhh2 {[%clk 0:00:21.8]} 45... Ne7 {[%clk 0:01:09.3]} 46. Rh1 {[%clk 0:00:22.2]}
1/2-1/2

[Event "*** Titled Tuesday Blitz"]
[Site "Chess.com"]
[Date "2020.12.29"]
[Round "5"]
[White "northridgehawk"]
[Black "zurzan"]
[Result "1-0"]
[WhiteElo "2320"]
[BlackElo "2057"]
[TimeControl "180+1"]
[EndTime "10:54:07 PST"]
[Termination "northridgehawk won by resignation"]

1. e4 {[%clk 0:02:42.2]} 1... Nf6 {[%clk 0:02:58.8]} 2. e5 {[%clk 0:02:34.6]}
2... Nd5 {[%clk 0:02:58.8]} 3. d4 {[%clk 0:02:34.6]} 3... d6 {[%clk 0:02:58.6]}
4. c4 {[%clk 0:02:35.5]} 4... Nb6 {[%clk 0:02:58.5]} 5. f4 {[%clk 0:02:36.4]}
5... dxe5 {[%clk 0:02:57.8]} 6. fxe5 {[%clk 0:02:37.3]} 6... Nc6 {[%clk
0:02:58]} 7. Be3 {[%clk 0:02:37.6]} 7... Bf5 {[%clk 0:02:54.9]} 8. Nf3 {[%clk
0:02:35.2]} 8... e6 {[%clk 0:02:55.1]} 9. Be2 {[%clk 0:02:35]} 9... Be7 {[%clk
0:02:55.3]} 10. O-O {[%clk 0:02:35.5]} 10... O-O {[%clk 0:02:55.7]} 11. a3
{[%clk 0:02:35.2]} 11... f6 {[%clk 0:02:55]} 12. exf6 {[%clk 0:02:32.9]} 12...
Bxf6 {[%clk 0:02:55.2]} 13. Qd2 {[%clk 0:02:30.3]} 13... e5 {[%clk 0:02:45.3]}
14. d5 {[%clk 0:02:29.6]} 14... Nd4 {[%clk 0:02:45.1]} 15. Nxd4 {[%clk 0:02:29]}
15... exd4 {[%clk 0:02:45]} 16. Bxd4 {[%clk 0:02:29.9]} 16... Bxb1 {[%clk
0:02:41.6]} 17. Raxb1 {[%clk 0:02:27.6]} 17... Nd7 {[%clk 0:02:22.5]} 18. Bg4
{[%clk 0:02:15.6]} 18... Ne5 {[%clk 0:02:19.1]} 19. Be6+ {[%clk 0:02:15.3]}
19... Kh8 {[%clk 0:02:18.3]} 20. Qc3 {[%clk 0:02:13.8]} 20... Nd7 {[%clk
0:01:57.2]} 21. b4 {[%clk 0:02:09]} 21... Bxd4+ {[%clk 0:01:53.4]} 22. Qxd4
{[%clk 0:02:09.9]} 22... Nf6 {[%clk 0:01:47.1]} 23. Rbe1 {[%clk 0:02:07.5]}
23... h6 {[%clk 0:01:38.8]} 24. h3 {[%clk 0:02:04.6]} 24... b6 {[%clk
0:01:35.6]} 25. Bf5 {[%clk 0:02:02.5]} 25... c5 {[%clk 0:01:28.2]} 26. Qd3
{[%clk 0:01:55.5]} 26... cxb4 {[%clk 0:01:24.7]} 27. axb4 {[%clk 0:01:56.4]}
27... Qd6 {[%clk 0:01:19.9]} 28. Qd2 {[%clk 0:01:53.4]} 28... Rae8 {[%clk
0:01:15.8]} 29. Bg6 {[%clk 0:01:52.5]} 29... Rxe1 {[%clk 0:01:14.4]} 30. Rxe1
{[%clk 0:01:53.4]} 30... Qg3 {[%clk 0:01:04.7]} 31. Bc2 {[%clk 0:01:33.2]} 31...
Nh5 {[%clk 0:00:58.7]} 32. Qe3 {[%clk 0:01:28.3]} 32... Qd6 {[%clk 0:00:49.9]}
33. Qe7 {[%clk 0:01:15.6]} 33... Qf4 {[%clk 0:00:34.8]} 34. Qe2 {[%clk
0:00:57.1]} 34... Ng3 {[%clk 0:00:28.9]} 35. Qe3 {[%clk 0:00:56.6]} 35... Qd6
{[%clk 0:00:24.9]} 36. Qd3 {[%clk 0:00:53.9]} 36... Nf5 {[%clk 0:00:21.7]} 37.
Rf1 {[%clk 0:00:51.6]} 37... Qe5 {[%clk 0:00:18.2]} 38. Rxf5 {[%clk 0:00:50.5]}
38... Qe1+ {[%clk 0:00:17.4]} 39. Kh2 {[%clk 0:00:50]} 39... Rxf5 {[%clk
0:00:17.6]} 40. Qxf5 {[%clk 0:00:50.9]} 1-0

[Event "*** Titled Tuesday Blitz"]
[Site "Chess.com"]
[Date "2020.12.29"]
[Round "5"]
[White "BikingBrian"]
[Black "Vyacheslav_N"]
[Result "1/2-1/2"]
[WhiteElo "2269"]
[BlackElo "2427"]
[TimeControl "180+1"]
[EndTime "10:54:13 PST"]
[Termination "Game drawn by repetition"]

1. d4 {[%clk 0:03:00.9]} 1... Nf6 {[%clk 0:02:56.7]} 2. Bg5 {[%clk 0:03:00.9]}
2... Ne4 {[%clk 0:02:56]} 3. Bf4 {[%clk 0:03:00.5]} 3... d5 {[%clk 0:02:52.8]}
4. f3 {[%clk 0:03:01]} 4... Nd6 {[%clk 0:02:52.7]} 5. Nc3 {[%clk 0:03:00]} 5...
e6 {[%clk 0:02:48.1]} 6. e4 {[%clk 0:03:00]} 6... dxe4 {[%clk 0:02:46.8]} 7.
fxe4 {[%clk 0:02:59.1]} 7... Nc6 {[%clk 0:02:47.5]} 8. Nf3 {[%clk 0:02:58.6]}
8... Be7 {[%clk 0:02:47.1]} 9. Be2 {[%clk 0:02:49.8]} 9... O-O {[%clk
0:02:46.5]} 10. O-O {[%clk 0:02:49.9]} 10... a6 {[%clk 0:02:41.4]} 11. Qd2
{[%clk 0:02:38.6]} 11... b5 {[%clk 0:02:40.9]} 12. Rad1 {[%clk 0:02:38.4]} 12...
Bb7 {[%clk 0:02:40.2]} 13. e5 {[%clk 0:02:34.2]} 13... Nf5 {[%clk 0:02:39.3]}
14. a3 {[%clk 0:02:17.2]} 14... Qd7 {[%clk 0:02:29.2]} 15. g4 {[%clk 0:02:17]}
15... Nh4 {[%clk 0:02:28.2]} 16. Bg5 {[%clk 0:01:52.6]} 16... Nxf3+ {[%clk
0:02:25.2]} 17. Bxf3 {[%clk 0:01:53.5]} 17... h6 {[%clk 0:02:17.2]} 18. Bxe7
{[%clk 0:01:45.6]} 18... Qxe7 {[%clk 0:02:18.1]} 19. Ne4 {[%clk 0:01:42.4]}
19... Rad8 {[%clk 0:02:08.1]} 20. c3 {[%clk 0:01:42.6]} 20... Nxe5 {[%clk
0:02:03.9]} 21. Nf6+ {[%clk 0:01:35.7]} 21... gxf6 {[%clk 0:01:50.1]} 22. Bxb7
{[%clk 0:01:34.5]} 22... Ng6 {[%clk 0:01:42]} 23. Qxh6 {[%clk 0:01:27.4]} 23...
c5 {[%clk 0:01:21.7]} 24. Be4 {[%clk 0:01:20.2]} 24... cxd4 {[%clk 0:01:18.7]}
25. Bxg6 {[%clk 0:00:52.7]} 25... fxg6 {[%clk 0:01:17.2]} 26. Qxg6+ {[%clk
0:00:53.6]} 26... Qg7 {[%clk 0:01:17.7]} 27. Qxg7+ {[%clk 0:00:54]} 27... Kxg7
{[%clk 0:01:18.6]} 28. Rxd4 {[%clk 0:00:53.3]} 28... Rxd4 {[%clk 0:01:04.2]} 29.
cxd4 {[%clk 0:00:54.2]} 29... Rd8 {[%clk 0:01:04.4]} 30. Rd1 {[%clk 0:00:54.3]}
30... Rd5 {[%clk 0:01:01.1]} 31. Kf2 {[%clk 0:00:41.4]} 31... Kg6 {[%clk
0:00:57.8]} 32. Ke3 {[%clk 0:00:41]} 32... Kg5 {[%clk 0:00:53.4]} 33. h3 {[%clk
0:00:41.3]} 33... Kh4 {[%clk 0:00:53.3]} 34. Rf1 {[%clk 0:00:27.2]} 34... f5
{[%clk 0:00:33.3]} 35. gxf5 {[%clk 0:00:26.1]} 35... exf5 {[%clk 0:00:34.2]} 36.
Rf3 {[%clk 0:00:20.7]} 36... Kg5 {[%clk 0:00:32.9]} 37. Rg3+ {[%clk 0:00:19.3]}
37... Kh4 {[%clk 0:00:28.6]} 38. Rf3 {[%clk 0:00:19.7]} 38... Kg5 {[%clk
0:00:28.9]} 39. Rg3+ {[%clk 0:00:20]} 39... Kh4 {[%clk 0:00:29.1]} 40. Rf3
{[%clk 0:00:20.5]} 1/2-1/2

[Event "*** Titled Tuesday Blitz"]
[Site "Chess.com"]
[Date "2020.12.29"]
[Round "5"]
[White "Aslanov_Umid"]
[Black "JozefKneht"]
[Result "0-1"]
[WhiteElo "2259"]
[BlackElo "2491"]
[TimeControl "180+1"]
[EndTime "10:54:15 PST"]
[Termination "JozefKneht won by resignation"]

1. e4 {[%clk 0:03:00.9]} 1... c5 {[%clk 0:02:59.1]} 2. Nf3 {[%clk 0:03:00.8]}
2... d6 {[%clk 0:02:59.2]} 3. d4 {[%clk 0:03:01.3]} 3... cxd4 {[%clk 0:02:59.2]}
4. Nxd4 {[%clk 0:03:02.2]} 4... Nf6 {[%clk 0:02:59]} 5. Nc3 {[%clk 0:03:02.8]}
5... a6 {[%clk 0:02:59.3]} 6. Bc4 {[%clk 0:03:02.3]} 6... e6 {[%clk 0:02:58.9]}
7. Bb3 {[%clk 0:03:02.8]} 7... b5 {[%clk 0:02:58.9]} 8. O-O {[%clk 0:03:02.1]}
8... Be7 {[%clk 0:02:58.7]} 9. Qe2 {[%clk 0:02:51.5]} 9... O-O {[%clk
0:02:55.8]} 10. Rd1 {[%clk 0:02:49.7]} 10... Qc7 {[%clk 0:02:52.6]} 11. f3
{[%clk 0:02:47.5]} 11... Bd7 {[%clk 0:02:49.7]} 12. Be3 {[%clk 0:02:47.3]} 12...
Nc6 {[%clk 0:02:49]} 13. Nxc6 {[%clk 0:02:46.2]} 13... Bxc6 {[%clk 0:02:48.3]}
14. Qf2 {[%clk 0:02:45.8]} 14... Qb7 {[%clk 0:02:47.6]} 15. Rd2 {[%clk
0:02:42.3]} 15... a5 {[%clk 0:02:45.1]} 16. a4 {[%clk 0:02:40]} 16... bxa4
{[%clk 0:02:36.9]} 17. Nxa4 {[%clk 0:02:39.8]} 17... Nd7 {[%clk 0:02:11.8]} 18.
Bd4 {[%clk 0:02:01.6]} 18... Rfc8 {[%clk 0:02:08.2]} 19. Qg3 {[%clk 0:01:58.4]}
19... Bf8 {[%clk 0:02:07]} 20. Rad1 {[%clk 0:01:47.8]} 20... Bxa4 {[%clk
0:02:05.7]} 21. Bxa4 {[%clk 0:01:47]} 21... Nc5 {[%clk 0:02:05.8]} 22. Bxc5
{[%clk 0:01:45.7]} 22... Rxc5 {[%clk 0:02:05.8]} 23. c3 {[%clk 0:01:36.3]} 23...
Rb8 {[%clk 0:02:01.1]} 24. Kh1 {[%clk 0:01:35.4]} 24... Qc7 {[%clk 0:01:53.9]}
25. Re1 {[%clk 0:00:57.8]} 25... g6 {[%clk 0:01:51.6]} 26. Bd1 {[%clk
0:00:55.2]} 26... Rb6 {[%clk 0:01:48.4]} 27. f4 {[%clk 0:00:53.1]} 27... Qb8
{[%clk 0:01:44.4]} 28. Qf2 {[%clk 0:00:50.9]} 28... Rcb5 {[%clk 0:01:40.1]} 29.
Ree2 {[%clk 0:00:48.6]} 29... Qc7 {[%clk 0:01:34.3]} 30. Ba4 {[%clk 0:00:41.7]}
30... Rc5 {[%clk 0:01:32.3]} 31. Bd1 {[%clk 0:00:31.2]} 31... Bg7 {[%clk
0:01:29.4]} 32. h4 {[%clk 0:00:29.5]} 32... h5 {[%clk 0:01:27.7]} 33. Re3 {[%clk
0:00:26.5]} 33... Rcb5 {[%clk 0:01:23.4]} 34. Ba4 {[%clk 0:00:23]} 34... Rc5
{[%clk 0:01:22.8]} 35. Bd1 {[%clk 0:00:20.4]} 35... Bh6 {[%clk 0:01:22.7]} 36.
Rf3 {[%clk 0:00:19.6]} 36... e5 {[%clk 0:01:22.2]} 37. f5 {[%clk 0:00:13]} 37...
Bxd2 {[%clk 0:01:18.2]} 38. Qxd2 {[%clk 0:00:13.9]} 38... Qe7 {[%clk 0:01:17.6]}
39. f6 {[%clk 0:00:14.1]} 39... Qf8 {[%clk 0:01:16.5]} 40. Rg3 {[%clk
0:00:14.6]} 40... Kh7 {[%clk 0:01:15.1]} 41. Qg5 {[%clk 0:00:14.9]} 41... Qh6
{[%clk 0:01:14.2]} 42. Qxh6+ {[%clk 0:00:04.8]} 42... Kxh6 {[%clk 0:01:13.6]}
43. b3 {[%clk 0:00:05.7]} 43... Rbc6 {[%clk 0:01:12]} 44. Rd3 {[%clk 0:00:06.2]}
44... Rxc3 {[%clk 0:01:11.3]} 45. Rxc3 {[%clk 0:00:07.1]} 45... Rxc3 {[%clk
0:01:10.6]} 46. Bf3 {[%clk 0:00:08]} 0-1

[Event "*** Titled Tuesday Blitz"]
[Site "Chess.com"]
[Date "2020.12.29"]
[Round "5"]
[White "IMUffeVinther-Schou"]
[Black "Bulldog167"]
[Result "0-1"]
[WhiteElo "2397"]
[BlackElo "2691"]
[TimeControl "180+1"]
[EndTime "10:54:20 PST"]
[Termination "Bulldog167 won on time"]

1. e4 {[%clk 0:03:00.9]} 1... c5 {[%clk 0:02:58.2]} 2. Nf3 {[%clk 0:03:00.3]}
2... d6 {[%clk 0:02:58.3]} 3. Bb5+ {[%clk 0:02:59.2]} 3... Nd7 {[%clk
0:02:58.3]} 4. Ba4 {[%clk 0:02:58.3]} 4... Nf6 {[%clk 0:02:54.2]} 5. O-O {[%clk
0:02:57.6]} 5... a6 {[%clk 0:02:50.2]} 6. c4 {[%clk 0:02:56.8]} 6... e5 {[%clk
0:02:47.7]} 7. Nc3 {[%clk 0:02:54.5]} 7... Be7 {[%clk 0:02:45.5]} 8. d3 {[%clk
0:02:53.1]} 8... O-O {[%clk 0:02:45.4]} 9. h3 {[%clk 0:02:46.2]} 9... Nb8 {[%clk
0:02:34.8]} 10. a3 {[%clk 0:02:25.7]} 10... Nc6 {[%clk 0:02:34.5]} 11. Rb1
{[%clk 0:02:22.6]} 11... Nd4 {[%clk 0:02:24.6]} 12. b4 {[%clk 0:02:17.3]} 12...
b6 {[%clk 0:02:18.4]} 13. bxc5 {[%clk 0:02:03.2]} 13... bxc5 {[%clk 0:02:19.3]}
14. Nxd4 {[%clk 0:01:54.3]} 14... cxd4 {[%clk 0:02:17.5]} 15. Bc6 {[%clk
0:01:50.2]} 15... Ra7 {[%clk 0:02:02.1]} 16. Nd5 {[%clk 0:01:49]} 16... Nd7
{[%clk 0:01:38.5]} 17. f4 {[%clk 0:01:22.1]} 17... Nc5 {[%clk 0:01:32.2]} 18. f5
{[%clk 0:01:09.8]} 18... f6 {[%clk 0:01:19]} 19. Rf3 {[%clk 0:00:51.3]} 19...
Bd7 {[%clk 0:01:16.8]} 20. Bxd7 {[%clk 0:00:44.3]} 20... Qxd7 {[%clk 0:01:17.7]}
21. Bd2 {[%clk 0:00:42.6]} 21... a5 {[%clk 0:01:10]} 22. Rb5 {[%clk 0:00:36.1]}
22... Bd8 {[%clk 0:01:02.1]} 23. Qb1 {[%clk 0:00:31.5]} 23... Kh8 {[%clk
0:00:59.7]} 24. Rb8 {[%clk 0:00:26.4]} 24... Rb7 {[%clk 0:00:45.7]} 25. Rxb7
{[%clk 0:00:23.4]} 25... Qxb7 {[%clk 0:00:46.6]} 26. Qxb7 {[%clk 0:00:16]} 26...
Nxb7 {[%clk 0:00:47.5]} 27. Kf2 {[%clk 0:00:14.7]} 27... Nc5 {[%clk 0:00:47.8]}
28. Ke2 {[%clk 0:00:14.4]} 28... Rf7 {[%clk 0:00:48.3]} 29. g4 {[%clk
0:00:11.2]} 29... Rb7 {[%clk 0:00:48.1]} 30. h4 {[%clk 0:00:10.5]} 30... Rb2
{[%clk 0:00:40.9]} 31. g5 {[%clk 0:00:08.6]} 31... Nb3 {[%clk 0:00:38.7]} 32.
gxf6 {[%clk 0:00:05.2]} 32... Bxf6 {[%clk 0:00:37.2]} 0-1

[Event "*** Titled Tuesday Blitz"]
[Site "Chess.com"]
[Date "2020.12.29"]
[Round "5"]
[White "tdf98pantani"]
[Black "yuki_chess123"]
[Result "1-0"]
[WhiteElo "2657"]
[BlackElo "2211"]
[TimeControl "180+1"]
[EndTime "10:54:21 PST"]
[Termination "tdf98pantani won by resignation"]

1. e4 {[%clk 0:03:00.9]} 1... g6 {[%clk 0:03:00]} 2. d4 {[%clk 0:02:57.7]} 2...
Bg7 {[%clk 0:03:00.2]} 3. Nc3 {[%clk 0:02:58]} 3... c6 {[%clk 0:03:00.3]} 4. Nf3
{[%clk 0:02:55.4]} 4... d5 {[%clk 0:03:00.1]} 5. h3 {[%clk 0:02:53.5]} 5... f6
{[%clk 0:03:00.2]} 6. Bd3 {[%clk 0:02:52.1]} 6... Nh6 {[%clk 0:03:00]} 7. O-O
{[%clk 0:02:52.3]} 7... O-O {[%clk 0:02:59.8]} 8. Re1 {[%clk 0:02:51.5]} 8... e6
{[%clk 0:02:57.1]} 9. Ne2 {[%clk 0:02:47.3]} 9... Nf7 {[%clk 0:02:56.8]} 10. c4
{[%clk 0:02:43.8]} 10... dxe4 {[%clk 0:02:48.2]} 11. Bxe4 {[%clk 0:02:43.9]}
11... f5 {[%clk 0:02:48.5]} 12. Bc2 {[%clk 0:02:43.4]} 12... e5 {[%clk
0:02:48.9]} 13. dxe5 {[%clk 0:02:39.4]} 13... Nxe5 {[%clk 0:02:46.3]} 14. Nxe5
{[%clk 0:02:38.3]} 14... Bxe5 {[%clk 0:02:45.7]} 15. Qxd8 {[%clk 0:02:37.7]}
15... Rxd8 {[%clk 0:02:45.1]} 16. Nf4 {[%clk 0:02:37.6]} 16... Bf6 {[%clk
0:02:27.3]} 17. Rb1 {[%clk 0:02:15.6]} 17... Na6 {[%clk 0:02:18.6]} 18. b4
{[%clk 0:02:15.3]} 18... Nxb4 {[%clk 0:01:59.7]} 19. Bb3 {[%clk 0:02:00.4]}
19... c5 {[%clk 0:01:51.5]} 20. Be3 {[%clk 0:01:47.7]} 20... b6 {[%clk
0:01:41.4]} 21. Rbd1 {[%clk 0:01:44.6]} 21... Bb7 {[%clk 0:01:36.8]} 22. a3
{[%clk 0:01:44.3]} 22... Nc6 {[%clk 0:01:23.8]} 23. Nd5 {[%clk 0:01:44]} 23...
Kf7 {[%clk 0:01:22.9]} 24. Nxf6 {[%clk 0:01:30.3]} 24... Kxf6 {[%clk 0:01:22.9]}
25. h4 {[%clk 0:01:31]} 25... Rxd1 {[%clk 0:01:08.2]} 26. Rxd1 {[%clk
0:01:27.1]} 26... Ke6 {[%clk 0:01:07.7]} 27. Ba4 {[%clk 0:01:21.6]} 27... Rd8
{[%clk 0:01:03.8]} 28. Re1 {[%clk 0:01:21.7]} 28... Kf7 {[%clk 0:01:00.5]} 29.
Bg5 {[%clk 0:01:19.4]} 29... Rd7 {[%clk 0:00:49.3]} 30. f3 {[%clk 0:01:17.5]}
30... Kg7 {[%clk 0:00:44]} 31. Kh2 {[%clk 0:01:16.2]} 31... h6 {[%clk 0:00:43]}
32. Bf4 {[%clk 0:01:14]} 32... Rf7 {[%clk 0:00:09]} 33. Re6 {[%clk 0:01:09.9]}
33... Nd4 {[%clk 0:00:09]} 34. Rd6 {[%clk 0:01:10]} 34... Re7 {[%clk 0:00:04.8]}
35. Rd8 {[%clk 0:00:53.4]} 35... Ne6 {[%clk 0:00:04.7]} 36. Be5+ {[%clk
0:00:53.6]} 36... Kf7 {[%clk 0:00:05.2]} 37. Rb8 {[%clk 0:00:51.9]} 37... g5
{[%clk 0:00:05]} 38. h5 {[%clk 0:00:51.8]} 38... Ng7 {[%clk 0:00:03.4]} 39. Bd6
{[%clk 0:00:50.6]} 39... Rd7 {[%clk 0:00:03]} 40. Bxd7 {[%clk 0:00:50.3]} 1-0

[Event "*** Titled Tuesday Blitz"]
[Site "Chess.com"]
[Date "2020.12.29"]
[Round "5"]
[White "Maksimus1998"]
[Black "IsuruAlahakoon"]
[Result "1-0"]
[WhiteElo "2541"]
[BlackElo "2299"]
[TimeControl "180+1"]
[EndTime "10:54:22 PST"]
[Termination "Maksimus1998 won on time"]

1. e4 {[%clk 0:03:00.9]} 1... e5 {[%clk 0:02:40.4]} 2. Nf3 {[%clk 0:03:00.2]}
2... d6 {[%clk 0:02:39.3]} 3. d4 {[%clk 0:02:57.9]} 3... Bg4 {[%clk 0:02:37.3]}
4. dxe5 {[%clk 0:02:57.2]} 4... Nd7 {[%clk 0:02:36.4]} 5. exd6 {[%clk
0:02:56.2]} 5... Bxd6 {[%clk 0:02:35.8]} 6. Be2 {[%clk 0:02:54.9]} 6... Qe7
{[%clk 0:02:29.4]} 7. Nc3 {[%clk 0:02:54.3]} 7... O-O-O {[%clk 0:02:28.9]} 8. h3
{[%clk 0:02:47.3]} 8... Bh5 {[%clk 0:02:27]} 9. Be3 {[%clk 0:02:44.5]} 9... Ngf6
{[%clk 0:02:23.9]} 10. Nd2 {[%clk 0:02:39.9]} 10... Bg6 {[%clk 0:02:19.4]} 11.
Bd3 {[%clk 0:02:24.9]} 11... Nc5 {[%clk 0:02:02.9]} 12. Bxc5 {[%clk 0:01:54.7]}
12... Bxc5 {[%clk 0:02:02.4]} 13. Qe2 {[%clk 0:01:53.4]} 13... Rhe8 {[%clk
0:01:53]} 14. f3 {[%clk 0:01:52.9]} 14... Bd4 {[%clk 0:01:40.7]} 15. Nb3 {[%clk
0:01:51.1]} 15... Be5 {[%clk 0:01:38.2]} 16. O-O-O {[%clk 0:01:49.2]} 16... Bxc3
{[%clk 0:01:28]} 17. bxc3 {[%clk 0:01:48.9]} 17... Qa3+ {[%clk 0:01:14.8]} 18.
Kb1 {[%clk 0:01:48.6]} 18... Nd5 {[%clk 0:01:08.2]} 19. Qd2 {[%clk 0:01:47.9]}
19... Nb6 {[%clk 0:00:58.3]} 20. Qc1 {[%clk 0:01:47.7]} 20... Qe7 {[%clk
0:00:52.3]} 21. Bb5 {[%clk 0:01:38.5]} 21... c6 {[%clk 0:00:44.5]} 22. Rxd8+
{[%clk 0:01:37.6]} 22... Rxd8 {[%clk 0:00:44.1]} 23. Be2 {[%clk 0:01:37.3]}
23... Qe5 {[%clk 0:00:37.8]} 24. Qe3 {[%clk 0:01:23.2]} 24... Na4 {[%clk
0:00:25.2]} 25. Nd4 {[%clk 0:01:16.1]} 25... c5 {[%clk 0:00:19.8]} 26. Nb5
{[%clk 0:01:13.1]} 26... a6 {[%clk 0:00:19.6]} 27. f4 {[%clk 0:01:13.4]} 27...
Qxe4 {[%clk 0:00:16.6]} 28. Bg4+ {[%clk 0:01:13]} 28... Kb8 {[%clk 0:00:15.2]}
29. Qxe4 {[%clk 0:01:09.2]} 29... Bxe4 {[%clk 0:00:16.1]} 30. Na3 {[%clk
0:01:08.9]} 30... Rd2 {[%clk 0:00:15.9]} 31. Re1 {[%clk 0:01:06.6]} 31... f5
{[%clk 0:00:15.7]} 32. Bf3 {[%clk 0:01:05.6]} 32... Nxc3+ {[%clk 0:00:13.4]} 33.
Kb2 {[%clk 0:01:05.6]} 33... Na4+ {[%clk 0:00:13.3]} 34. Kc1 {[%clk 0:01:05.5]}
34... Rd4 {[%clk 0:00:09.1]} 35. Bxe4 {[%clk 0:01:04.9]} 35... fxe4 {[%clk
0:00:10]} 36. g4 {[%clk 0:01:02.9]} 36... b5 {[%clk 0:00:09.3]} 37. f5 {[%clk
0:01:03]} 37... Nc3 {[%clk 0:00:07.7]} 38. Kb2 {[%clk 0:01:02.4]} 38... b4
{[%clk 0:00:07.1]} 39. Nb1 {[%clk 0:01:02]} 39... Na4+ {[%clk 0:00:06.6]} 40.
Kc1 {[%clk 0:01:01.9]} 40... c4 {[%clk 0:00:05.9]} 41. Nd2 {[%clk 0:01:00.9]}
41... Nc5 {[%clk 0:00:03.3]} 42. g5 {[%clk 0:00:59.3]} 1-0

[Event "*** Titled Tuesday Blitz"]
[Site "Chess.com"]
[Date "2020.12.29"]
[Round "5"]
[White "stasiek18"]
[Black "HrvojeZagreb"]
[Result "1-0"]
[WhiteElo "2384"]
[BlackElo "2230"]
[TimeControl "180+1"]
[EndTime "10:54:22 PST"]
[Termination "stasiek18 won by resignation"]

1. e4 {[%clk 0:03:00.9]} 1... e6 {[%clk 0:02:56.9]} 2. f4 {[%clk 0:02:53.7]}
2... d5 {[%clk 0:02:56.9]} 3. e5 {[%clk 0:02:54.2]} 3... Nh6 {[%clk 0:02:57.1]}
4. Nf3 {[%clk 0:02:52.9]} 4... c5 {[%clk 0:02:57.2]} 5. c3 {[%clk 0:02:52.9]}
5... Nc6 {[%clk 0:02:57.6]} 6. Na3 {[%clk 0:02:52]} 6... Be7 {[%clk 0:02:55]} 7.
Nc2 {[%clk 0:02:50.4]} 7... O-O {[%clk 0:02:54.1]} 8. d4 {[%clk 0:02:48.6]} 8...
f6 {[%clk 0:02:53.9]} 9. Bd3 {[%clk 0:02:36.7]} 9... fxe5 {[%clk 0:02:48.9]} 10.
fxe5 {[%clk 0:02:36.9]} 10... Nf5 {[%clk 0:02:43.7]} 11. O-O {[%clk 0:02:31.4]}
11... cxd4 {[%clk 0:02:37.3]} 12. Bxf5 {[%clk 0:02:24.1]} 12... Rxf5 {[%clk
0:02:34.8]} 13. Ncxd4 {[%clk 0:02:20.3]} 13... Rf7 {[%clk 0:02:29]} 14. Be3
{[%clk 0:02:01.4]} 14... Bd7 {[%clk 0:02:18.1]} 15. Qd2 {[%clk 0:01:56]} 15...
Qc7 {[%clk 0:02:00]} 16. Bg5 {[%clk 0:01:00.3]} 16... Nxe5 {[%clk 0:01:43.9]}
17. Nxe5 {[%clk 0:00:57.3]} 17... Qxe5 {[%clk 0:01:39.6]} 18. Bxe7 {[%clk
0:00:40.8]} 18... Rxe7 {[%clk 0:01:37.8]} 19. Rae1 {[%clk 0:00:40.7]} 19... Qh5
{[%clk 0:01:33.2]} 20. Nf3 {[%clk 0:00:35]} 20... Bb5 {[%clk 0:01:23.4]} 21. Re5
{[%clk 0:00:29.8]} 21... Qxe5 {[%clk 0:01:21]} 22. Nxe5 {[%clk 0:00:29.3]} 22...
Bxf1 {[%clk 0:01:20.4]} 23. Kxf1 {[%clk 0:00:30.2]} 23... Rf8+ {[%clk
0:01:19.6]} 24. Kg1 {[%clk 0:00:29.9]} 24... Rf5 {[%clk 0:01:19.5]} 25. Qd4
{[%clk 0:00:27.7]} 25... Re8 {[%clk 0:01:09.3]} 26. h3 {[%clk 0:00:22.7]} 26...
a6 {[%clk 0:01:07.6]} 27. a4 {[%clk 0:00:21.9]} 27... Ref8 {[%clk 0:00:58.7]}
28. Nd7 {[%clk 0:00:22.3]} 28... R8f7 {[%clk 0:00:54.5]} 29. Nc5 {[%clk
0:00:21.7]} 29... R5f6 {[%clk 0:00:49.9]} 30. a5 {[%clk 0:00:21.5]} 30... h6
{[%clk 0:00:48.9]} 31. Qe5 {[%clk 0:00:21.6]} 31... Rf1+ {[%clk 0:00:41.3]} 32.
Kh2 {[%clk 0:00:21.2]} 32... R1f2 {[%clk 0:00:41.5]} 33. Qxe6 {[%clk 0:00:19.5]}
33... Rxb2 {[%clk 0:00:40]} 34. Nd7 {[%clk 0:00:16.8]} 1-0